Cogmind - Beta 16 @@@ ROGUE MODE // 2026.01.17 @ 14:36:55 Player: celerysam Result: Destroyed by VS-AAK(R) with Subdweller Machine Gun Performance ------------- Evolutions (0) 0 Regions Visited (2) 400 Robots Destroyed (24) 120 Value Destroyed (601) 601 Prototype IDs (3) 60 Alien Tech Used (0) 0 Bonus (0) 0 TOTAL SCORE: 1181 Bonus ------- None Cogmind --------- Core Integrity 0/250 Matter 257/300 Energy 200/200 System Corruption 3% Temperature Cool (0) Movement Rolling (145) Ox3 Location -10/Subcaves Parts ------- > --- POWER (1) -------- Subdweller Power Source > --- PROPULSION (2) --- Compact Wheel > --- UTILITY (2) ------ High-capacity Storage Unit Core Shielding > --- WEAPON (2) ------- Improved Medium Laser (fused) > --- INVENTORY (20) --- Ion Engine Light Nuclear Core Light Treads Light Treads Wheel Wheel Wheel Compact Wheel Compact Wheel Heat Sink Medium Storage Unit Structural Scanner Seismic Detector Riot Gun Improved Light Cannon Improved Light Cannon Improved Light Cannon Grenade Launcher Rocket Launcher Peak State ------------ > --- POWER ------------ Ion Engine > --- PROPULSION ------- Wheel Wheel > --- UTILITY ---------- High-capacity Storage Unit Core Shielding > --- WEAPON ----------- Improved Medium Laser Improved Medium Laser > --- INVENTORY -------- Ion Engine Ion Engine Ion Engine Light Ion Engine Light Treads Light Treads Light Treads Wheel Wheel Wheel Compact Wheel Compact Wheel Compact Wheel Heat Sink Medium Storage Unit Structural Scanner Seismic Detector Beam Cannon Grenade Launcher Rocket Launcher [Rating: 13] Favorites ----------- Power Ion Engine Engine Ion Engine Propulsion Wheel Treads Light Treads Leg Aluminum Leg Wheel Wheel Utility High-capacity Storage Unit Storage High-capacity Storage Unit Protection Core Shielding Weapon Improved Medium Laser Energy Gun Improved Medium Laser Energy Cannon Beam Cannon Ballistic Gun Light Assault Rifle Ballistic Cannon Improved Light Cannon Build | -11 -10 -10 ------- Run | Yrd Mat Sub Slots Evolved . | . . . Power . | . . . Propulsion . | . . . Utility . | . . . Weapon . | . . . Parts Attached 25 | 6 17 2 Power 5 | 1 3 1 Engine 5 | 1 3 1 Core . | . . . Reactor . | . . . Propulsion 9 | 2 6 1 Treads 2 | . 2 . Leg 2 | 2 . . Wheel 5 | . 4 1 Hover . | . . . Flight . | . . . Utility 4 | 1 3 . Device . | . . . Storage 3 | 1 2 . Processor . | . . . Hackware . | . . . Protection 1 | . 1 . Artifact . | . . . Weapon 7 | 2 5 . Energy Gun 4 | 1 3 . Energy Cannon 1 | . 1 . Ballistic Gun 1 | 1 . . Ballistic Cannon 1 | . 1 . Launcher . | . . . Special Weapon . | . . . Impact Weapon . | . . . Slashing Weapon . | . . . Piercing Weapon . | . . . Special Melee Weapon . | . . . Unidentified Prototypes 1 | . 1 . Parts Lost 8 | . 5 3 Power 2 | . 1 1 Propulsion 3 | . 2 1 Utility . | . . . Weapon 3 | . 2 1 Highest Loss Streak 5 | . 5 3 To Critical Strikes . | . . . Average Backups 16 | 4 12 19 Power 2 | . 3 2 Propulsion 6 | 3 5 7 Utility 3 | . 2 4 Weapon 4 | . 2 5 Tool/Special . | . . . Unused Backups 18 | . . 18 Power 3 | . . 3 Propulsion 6 | . . 6 Utility 3 | . . 3 Weapon 6 | . . 6 Tool/Special . | . . . Average Slot Usage (%) 97 | . 92 99 Engine 13 | . 13 14 Leg 1 | . 4 . Wheel 25 | . 20 27 Storage 14 | . 14 14 Protection 11 | . 7 14 Energy Gun 14 | . 14 14 Energy Cannon 2 | . 5 . Ballistic Gun 2 | . 6 . Ballistic Cannon 9 | . . 14 Peak Build Rating 13 | 6 13 13 Average Rating 10 | 4 8 12 On Entrance 6 | . 6 12 Avg Prop Armor Cover (%) . | . . . Naked Turns . | . . . Heaviest Build 53 | 10 53 53 Greatest Support 40 | 20 40 26 Greatest Overweight (x) 2 | 1 2 2 Average Overweight (x) 1 | . 1 2 Largest Inventory Capacity 20 | 8 20 20 Average Capacity 19 | 6 18 20 Most Carried 20 | 6 20 20 Average Carried 17 | 4 12 19 Final Capacity 20 | 8 20 20 Final Carried 20 | 6 20 19 Class Distribution -------------------- 100% | Mutant Dominant Class ---------------- Mutant | -10/Materials Mutant | -10/Subcaves Resources | -11 -10 -10 ----------- Run | Yrd Mat Sub Matter Collected 692 | 259 211 222 Remotely . | . . . Salvage Created 754 | . 558 196 Parts 40 | . 29 11 Haulers Intercepted 2 | . 2 . Recyclers Shooed . | . . . Parts Field Recycled . | . . . Retrieved Matter . | . . . Parts Self-Destructed 12 | . . 12 Prevented . | . . . Parts Restored . | . . . Kills | -11 -10 -10 ------- Run | Yrd Mat Sub Combat Hostiles Destroyed 22 | . 17 5 Guns 14 | . 11 3 Cannons 8 | . 6 2 Classes Destroyed 5 | . 3 2 Hauler 2 | . 2 . Swarmer 9 | . 9 . Grunt 9 | . 8 1 Sentry 1 | . . 1 Subdweller 3 | . . 3 Best Kill Streak 3 | . 3 2 Combat Bots Only 3 | . 3 2 Max Kills in Single Turn 1 | . 1 1 Gunslinging . | . . . Exploded . | . . . Melee . | . . . Uniques/NPCs Destroyed . | . . . Combat | -11 -10 -10 -------- Run | Yrd Mat Sub Hostile Shots Fired 134 | . 93 41 Missed 40 | . 26 14 Hits 94 | . 67 27 Projectile 94 | . 67 27 Damage Taken 1264 | . 711 553 Core 256 | . 101 155 Absorbed by Shields . | . . . Redirected to Shielding 43 | . 9 34 Core Remaining (%) 100 | 100 . . Volleys Fired 117 | . 68 49 Largest 2 | . 2 2 Hottest 116 | . 116 89 Shots Fired 196 | . 131 65 Gun 121 | . 104 17 Cannon 75 | . 27 48 Launcher . | . . . Special . | . . . Kinetic 87 | . 39 48 Thermal 109 | . 92 17 Explosive . | . . . Electromagnetic . | . . . Robot Hit Streak 22 | . 10 22 Robot Miss Streak 5 | . 5 2 Penetration Max . | . . . Secondary Targets 3 | . 3 . Max Gunslinging Chain 1 | . 1 . Shots Hit Robots 103 | . 74 29 Core Hits 36 | . 26 10 Critical Kills . | . . . Critical Parts Destroyed . | . . . Critical Strikes 4 | . 2 2 Burn 2 | . 1 1 Blast 2 | . 1 1 Melee Attacks . | . . . Impact . | . . . Slashing . | . . . Piercing . | . . . Sneak Attacks . | . . . Combat Hostiles . | . . . Follow-up Attacks . | . . . Damage Inflicted 1567 | . 941 626 Guns 894 | . 674 220 Cannons 673 | . 267 406 Explosions . | . . . Melee . | . . . Ramming . | . . . Kinetic 553 | . 147 406 Thermal 1014 | . 794 220 Explosive . | . . . Electromagnetic . | . . . Impact . | . . . Slashing . | . . . Piercing . | . . . Highest Corruption 3 | . 3 3 Average Corruption 2 | . 2 3 Corruption Purged . | . . . Corruption Blocked . | . . . Effects 36 | . 5 31 Message Errors 8 | . 1 7 Matter Fused 10 | . 2 8 Heat Flow Errors 1 | . . 1 Energy Discharges 7 | . 1 6 Parts Fused 1 | . . 1 Data Loss (minor) 4 | . . 4 Data Loss (major) 3 | . . 3 Misfires 1 | . 1 . Weapon Failures 1 | . . 1 Overload Shots . | . . . Overflow Damage . | . . . Projectiles . | . . . Explosions . | . . . Melee . | . . . Knockbacks 6 | . . 6 Impact . | . . . Kinetic 5 | . . 5 Secondary 1 | . . 1 Self-Inflicted Damage . | . . . Shots . | . . . Rammed . | . . . Targets Rammed . | . . . Kicked . | . . . Crushed . | . . . Highest Temperature 408 | . 408 163 Average Temperature 78 | . 78 83 Received Heat Transfer 390 | . 291 99 Effects 3 | . 3 . Energy Bleed 2 | . 2 . Damage (minor) 1 | . 1 . Siege Activations . | . . . Martial Activations . | . . . Shielding Activations . | . . . Robots Disrupted . | . . . Combat Hostiles . | . . . Robots Corrupted . | . . . Combat Hostiles . | . . . Parts Fried . | . . . Impact Corruptions . | . . . Robots Melted . | . . . Combat Hostiles . | . . . Parts Melted 3 | . 3 . Heat Transferred 2380 | . 1825 555 Parts Sabotaged . | . . . Parts Stolen . | . . . Parts Stripped . | . . . Power Chain Reactions . | . . . Alert | -11 -10 -10 ------- Run | Yrd Mat Sub Maximum Alert Level . | . . . Low Security (%) 100 | 100 100 . Level 1 . | . . . Level 2 . | . . . Level 3 . | . . . Level 4 . | . . . Level 5 . | . . . High Security . | . . . Max Security . | . . . Peak Influence 130 | . 130 . Initial . | . . . Average 48 | . 52 . Influence Increases 540 | . 490 50 Destroy 0b10 Robot/C 380 | . 340 40 Destroy 0b10 Robot/NC 10 | . 10 . Destroy Leader 84 | . 74 10 Successful Hack 5 | . 5 . Disable Machine 15 | . 15 . Destroy Structure 1 | . 1 . Lose Combat Pursuer 45 | . 45 . Influence Decreases 540 | . 420 120 Entered New Map 34 | . . 34 Time Decay 456 | . 370 86 Lost Part 50 | . 50 . Squads Dispatched 3 | . 3 . Investigation . | . . . Extermination . | . . . Reinforcement 3 | . 3 . Assault . | . . . Garrison . | . . . Intercept . | . . . Searches Triggered . | . . . Construction Impeded . | . . . Haulers Reinforced . | . . . Active Scanning Responses . | . . . Cargo Convoy Interrupts . | . . . Stealth | -11 -10 -10 --------- Run | Yrd Mat Sub Distress Signals . | . . . Communications Jammed . | . . . Distress Signals . | . . . Times Spotted 41 | . 30 11 Peak Tracking Total 5 | . 5 2 Tactical Retreats 2 | . 2 . Traps | -11 -10 -10 ------- Run | Yrd Mat Sub Traps Triggered 2 | . 2 . Indirectly . | . . . Trap Hack Attempts . | . . . Triggered . | . . . Disarmed . | . . . Reprogrammed . | . . . Reused . | . . . Traps Extracted . | . . . Installed 1 | . . 1 Triggered . | . . . Machines | -11 -10 -10 ---------- Run | Yrd Mat Sub Machines Disabled 1 | . 1 . Max in Single Turn 1 | . 1 . Machines Repaired . | . . . Machines Dismantled . | . . . Machines Sabotaged . | . . . Overloaded Fab Kills . | . . . Hacking | -11 -10 -10 --------- Run | Yrd Mat Sub Machines Accessed 2 | . 1 1 Terminals 1 | . 1 . Fabricators . | . . . Repair Stations . | . . . Recycling Units . | . . . Scanalyzers . | . . . Garrison Access . | . . . Total Hacks 7 | . 3 4 Successful 5 | . 1 4 Failed 2 | . 2 . Catastrophic . | . . . Database Lockouts . | . . . Manual 2 | . 2 . Terminals 3 | . 3 . Fabricators . | . . . Repair Stations . | . . . Recycling Units . | . . . Scanalyzers . | . . . Garrison Access . | . . . Terminal Hacks 5 | . 1 4 Record 4 | . . 4 Prototype ID Bank 1 | . 1 . Fabricator Hacks . | . . . Repair Station Hacks . | . . . Recycling Unit Hacks . | . . . Scanalyzer . | . . . Garrison Access Hacks . | . . . Unauthorized Hacks . | . . . Terminals . | . . . Fabricators . | . . . Repair Stations . | . . . Recycling Units . | . . . Scanalyzers . | . . . Garrison Access . | . . . Data Cores Recovered . | . . . Used . | . . . Hacking Detections 1 | . 1 . Full Trace Events . | . . . Feedback Events . | . . . Feedback Blocked . | . . . Robot Schematics Acquired . | . . . Robots Built . | . . . Authchips . | . . . Time . | . . . Total Robot Build Rating . | . . . Part Schematics Acquired . | . . . Parts Built . | . . . Authchips . | . . . Time . | . . . Total Part Build Rating . | . . . Part Studies Acquired . | . . . Parts Repaired . | . . . Time . | . . . Parts Recycled . | . . . Recycled Matter . | . . . Retrieved Matter . | . . . Retrieved Components . | . . . Parts Scanalyzed . | . . . Part Schematics Acquired . | . . . Parts Damaged . | . . . Bothacking | -11 -10 -10 ------------ Run | Yrd Mat Sub Used RIF Installer . | . . . Robots Hacked . | . . . Non-combat . | . . . Combat . | . . . Robot Hacks Applied . | . . . Relay Couplers Released . | . . . Fabnet Peak Effective % . | . . . Robots Rewired . | . . . Allies Hacked . | . . . Hacks Repelled . | . . . Allies | -11 -10 -10 -------- Run | Yrd Mat Sub Total Allies . | . . . Largest Group . | . . . Highest-Rated Group . | . . . Highest-Rated Ally . | . . . Total Orders . | . . . Ally Attacks . | . . . Total Damage . | . . . Kills . | . . . Allies Corrupted . | . . . Allies Melted . | . . . Intel | -11 -10 -10 ------- Run | Yrd Mat Sub Active Infowar (turns) . | . . . Robot Analysis Total . | . . . Derelict Logs Recovered 2 | . . 2 Drone Launches . | . . . Drone Recoveries . | . . . Exploration | -11 -10 -10 ------------- Run | Yrd Mat Sub Turns Passed 2843 | 75 1022 1746 Spaces Moved 2056 | 63 628 1365 Core 25 | 25 . . Treads 23 | . 23 . Legs 143 | 38 105 . Wheels 1865 | . 500 1365 Hover . | . . . Flight . | . . . Fastest Speed 50 | 50 100 110 Average Speed 117 | 96 117 118 Slowest Speed 240 | 120 240 120 Overloaded Moves . | . . . Propulsion Burnouts . | . . . Robots Hopped . | . . . Potential Cave-ins . | . . . Cave-ins Triggered . | . . . Exploration Rate (%) 56 | 4 97 69 Regions Visited 2 Branch Regions 1 Pre-discovered Areas 1 | . . 1 Known Exits Taken . | . . . Unknown Exits Taken 2 | 1 1 . Scrap Searched . | . . . Spaces Dug . | . . . Terrain Destroyed 1 | . 1 . Melee . | . . . Projectile 1 | . 1 . AOE . | . . . Terrain Rammed . | . . . Walls Destroyed . | . . . Machines Disabled . | . . . Actions | -11 -10 -10 --------- Run | Yrd Mat Sub Total 2294 | 74 785 1435 Wait 50 | . 38 12 Move 2054 | 62 627 1365 Hop . | . . . Pick Up 36 | 6 27 3 Fast Attach 7 | 6 1 . Attach 8 | . 7 1 Detach . | . . . Swap 10 | . 9 1 Drop 11 | . 8 3 Fire 117 | . 68 49 Melee . | . . . Ram . | . . . Kick . | . . . Crush . | . . . Escape Stasis . | . . . Rewire . | . . . Trap 1 | . . 1 Miscellaneous . | . . . Route ------- -11/Scrapyard -10/Materials (discovered 6 exits: [*Mat x3] / [*Min x2] / *Sub) -10/Subcaves (discovered 4 exits: [*Mat x2] / [*Rec] / [*Scr]) History --------- Turn | Location | Event 6 | -11/Scrapyard | Discovered new exit (range 15) 76 | -11/Scrapyard | Entered Materials 181 | -10/Materials | Discovered new exit (range 15) 317 | -10/Materials | Build established: Mutant 456 | -10/Materials | Discovered new exit (range 10) 598 | -10/Materials | Lost 5 parts (1p2n2w) 689 | -10/Materials | Discovered new exit (range 5) 765 | -10/Materials | Discovered new exit (range 6) 843 | -10/Materials | Discovered new exit (range 3) 975 | -10/Materials | Discovered new exit (range 10) 1098 | -10/Materials | Entered Subcaves 1099 | -10/Subcaves | Approached by a straggling Scientist 1102 | -10/Subcaves | Learned Materials emergency access door positions 1232 | -10/Subcaves | Shifting Twisted Machinery released Shrapnel Trap 1309 | -10/Subcaves | Learned location of Storage (-9) 1313 | -10/Subcaves | Shifting Twisted Machinery released Sub. Power Source 1314 | -10/Subcaves | Discovered new exit (range 3) 1316 | -10/Subcaves | Shifting Twisted Machinery released Sub. Laser 1432 | -10/Subcaves | Core integrity fell below 50% 1708 | -10/Subcaves | Visited Clippyterm 1711 | -10/Subcaves | Learned 40 Factory zone layouts 1711 | -10/Subcaves | Learned Research security intel 2214 | -10/Subcaves | A swath of the cavern ceiling suddenly collapsed 2376 | -10/Subcaves | Discovered new exit (range 15) 2696 | -10/Subcaves | Discovered new exit (range 16) 2837 | -10/Subcaves | Core integrity fell below 20% 2844 | -10/Subcaves | Destroyed by VS-AAK(R) with Subdweller Machine Gun Last Messages --------------- 02542_ Acquired 12 matter. 02579_ 20-XIY(u) builds Twisted Machinery. 02591_ System corrupted: Imp. Light Cannon jammed. 02606_ Acquired 11 matter. 02646_ System corrupted: Matter fused (-5). 02662_ 9KJSG&RBQB9GLZ:YFM|BNCWD/7KM,U 02693_ System corrupted: Energy discharge (-52). 02696_ EXIT=FOUND 02704_ Acquired 18 matter. 02709_ Acquired 7 matter. 02730_ System corrupted: Imp. Medium Laser fused. 02731_ Acquired 9 matter. 02801_ Acquired 6 matter. 02823_ 66-LGB(R) Unknown Device blasted off. 02824_ Ion Engine destroyed. 02837_ 66-LGB(R) knocked back. 02838_ Wheel destroyed. 02843_ Imp. Light Cannon destroyed. Map ----- +----------------------------------------------------+ | ?????????????????????????????????????????????????? | | ?????????????????????????????????????????????????? | | ?????????????????????????????????????????????????? | | ?????????????????????????????????????????????????? | | ?????????????????????????????????????????????????? | | ?????????????????????????????????????????????????? | | ?????????????????????????????????????????????????? | | ?????????????????????????????????????????????????? | | ?????????????????????????????????????????????????? | | ?????????????????????????????????????????????????? | | ?????????????????????????????????????????????????? | | ?????????????????????????????????????????????????? | | ?????????????????????????????????????????????????? | | ?????????????????????????????????????????????????? | | ?????????????????????????????????????????????????? | | ?????????????????????????????????????????????????? | | ?????????????????????????????????????????????????? | | ?????????????????????????????????????????????????? | | ???????????????????????????#?????????????????????? | | ?????????????????????????? ##????????????????????? | | ??##?????????????????????? ##???????????????????? | | ## ##????????????????????? !###?????????????????? | | # ##???????????????##??? %##????????????????? | | "" " #???????????????# ##? RR%% ##???????????????? | | """ #???????????????# ## #???????????????? | | """##??????????????## @ #???????????????? | | ""##???????????????# #???????????????? | | * #????????????????# ##???????????????? | | " ##????????????????## #####????????????????? | | # #??????????????????# ##???????? ??????????? | | #"#??????????????????# #???????? ?????????? | | ###??????????????????# #???????? #?????????? | | ??###????????????????## ##???????? #?????????? | | ?##"##???????????????## #???????? ??????????? | | ?# ""##??????????????# #???????? #??????????? | | ## #??????????????# #??###### #???????????? | | ##??????????????## #?## #???????????? | | ##??????????????## ##?? #????????????? | | " #??????????????# ##???# #?????????????? | | #####??????????????# ##### #??????????????? | | #######??????????????## ## # ##??#####??????? | | #?##""##?????##???????# #### ##?????? | | ??#" "######"#??####?# % #?????? | | ???# ## ##""#?## ### ### ## % #?????? | | ?### "" " #### ############ ##?????? | | ## """ ######## ##??????? | | """ #### # # # ##???????? | | """" " " ##??## #????????? | | " ## "" "# # #????# #????????? | | ###### """" #### #????# # # # #????????? | +----------------------------------------------------+ Best States ------------- Heat Dissipation 25 Energy Generation 15 Energy Capacity 250 Matter Stores 300 Matter Capacity 300 Sight Range 16 Terrain Scan Density 10 Core Shielding 20 Evasion (%) 55 Recoil Reduction 2 Item Schematics ----------------- None Robot Schematics ------------------ None Fabricated ------------ Nothing Repaired ---------- Nothing Studied --------- None Alien Tech Used ----------------- None Achievements -------------- None Challenges ------------ None Game ------ Seed ThrusterSuperquantumMapper Manual? 0 Play Time 00:24:35 Cumulative 287.7 hours Start 2026.01.17 @ 14:02:11 End 2026.01.17 @ 14:36:55 Sessions 1 Manual Loads 0 Difficulty Rogue Special Mode None Game No. 453 Rogue 453 Adventurer 0 Explorer 0 Win Type - Total 1 Types 1/0/0/0/0/0/0/0/0/0 Lore% 65 Gallery% 63 Achievement% 31 Wizard Run 0 Options --------- Layout 1 ASCII 0 Keyboard 0 Movement Mouse Keybinds 0 Fullscreen 2 Font 24/Smallcaps Map View 50x35 Zoom Use 0% Tactical HUD 1 Map Filters NONE Filters NONE Steam 1 RUN: d42a5e26-15cd-49ce-abee-a7ccaee6a733